fUSD/lending_fUSD_20240105
["ID","MTS","AMOUNT","RATE_DAILY","PERIOD"]
[310328464,1704473511621,-680.71,0.00032602,2]
[310328465,1704473511632,-2835.72,0.00032602,2]
[310328466,1704473511642,-500.0,0.00032602,2]
[310328467,1704473511652,-2858.86,0.00032602,2]
[310328468,1704473511662,-533.41,0.00032602,2]
[310328469,1704473511672,-500.0,0.00032602,2]
[310328470,1704473511683,-500.0,0.00032602,2]
[310328471,1704473511694,-500.0,0.00032602,2]
[310328472,1704473511704,-2517.57,0.00032602,2]
[310328473,1704473511714,-1374.42,0.00032602,2]
[310328474,1704473511725,-2511.86,0.00032602,2]
[310328475,1704473511735,-500.0,0.00032602,2]
[310328476,1704473511745,-2755.52,0.00032602,2]
[310328477,1704473511756,-500.0,0.00032602,2]
[310328478,1704473511767,-1222.0,0.00032602,2]
[310328479,1704473511778,-500.0,0.00032602,2]
[310328480,1704473511788,-500.0,0.00032602,2]
[310328481,1704473511798,-500.0,0.00032602,2]
[310328482,1704473511808,-4236.93,0.00032602,2]
[310328483,1704473511818,-814.18,0.00032602,2]
[310328484,1704473511829,-500.0,0.00032602,2]
[310328485,1704473511840,-2392.95,0.00032602,2]
[310328486,1704473511850,-500.0,0.00032602,2]
[310328487,1704473511861,-1842.01,0.00032602,2]
[310328488,1704473511872,-804.31,0.00032602,2]
[310328489,1704473511889,-645.88,0.00032602,2]
[310328490,1704473511899,-610.27755629,0.00032602,2]
[310328491,1704473511910,-500.0,0.00032602,2]
[310328492,1704473511921,-780.05,0.00032602,2]
[310328493,1704473511931,-20128.17,0.00032602,2]
[310328494,1704473511941,-625.47660279,0.00032602,2]
[310328495,1704473511951,-618.16,0.00032602,2]
[310328496,1704473511962,-500.0,0.00032602,2]
[310328497,1704473511972,-500.0,0.00032602,2]
[310328498,1704473511982,-500.0,0.00032602,2]
[310328499,1704473511992,-510.82,0.00032602,2]
[310328500,1704473512002,-396.45,0.00032602,2]
[310328501,1704473512016,-500.0,0.00032602,2]
[310328502,1704473512034,-1056.97,0.00032602,2]
[310328503,1704473512044,-1483.19,0.00032602,2]
[310328504,1704473512053,-500.0,0.00032602,2]
[310328505,1704473512064,-500.0,0.00032602,2]
[310328506,1704473512074,-500.0,0.00032602,2]
[310328507,1704473512084,-1304.64,0.00032602,2]
[310328508,1704473512094,-551.09770799,0.00032602,2]
[310328509,1704473512105,-500.0,0.00032602,2]
[310328510,1704473512116,-500.0,0.00032602,2]
[310328511,1704473512127,-759.04,0.00032602,2]
[310328512,1704473512138,-1800.48,0.00032602,2]
[310328513,1704473512149,-3227.18,0.00032602,2]
[310328514,1704473512159,-3583.58,0.00032602,2]
[310328515,1704473512170,-768.62,0.00032602,2]
[310328516,1704473512181,-500.0,0.00032602,2]
[310328517,1704473512191,-500.0,0.00032602,2]
[310328518,1704473512201,-2756.04,0.00032602,2]
[310328519,1704473512210,-2834.13,0.00032602,2]
[310328520,1704473512220,-2515.3,0.00032602,2]
[310328521,1704473512230,-500.0,0.00032602,2]
[310328522,1704473512240,-5299.03,0.00032602,2]
[310328523,1704473512250,-537.2,0.00032602,2]
[310328524,1704473512261,-500.0,0.00032602,2]
[310328525,1704473512272,-664.57,0.00032602,2]
[310328526,1704473512282,-1051.18,0.00032602,2]
[310328527,1704473512292,-512.71,0.00032602,2]
[310328528,1704473512302,-500.0,0.00032602,2]
[310328529,1704473512312,-500.0,0.00032602,2]
[310328530,1704473512323,-500.0,0.00032602,2]
[310328531,1704473512333,-1696.0,0.00032602,2]
[310328532,1704473512368,-2490.22,0.00032602,2]
[310328533,1704473512378,-3340.06,0.00032602,2]
[310328534,1704473512388,-500.0,0.00032602,2]
[310328535,1704473512398,-1285.5,0.00032602,2]
[310328536,1704473512408,-500.0,0.00032602,2]
[310328537,1704473512419,-572.05713044,0.00032602,2]
[310328538,1704473512430,-848.87,0.00032602,2]
[310328539,1704473512440,-500.0,0.00032602,2]
[310328540,1704473512450,-554.12,0.00032602,2]
[310328541,1704473512460,-606.02,0.00032602,2]
[310328542,1704473512472,-11508.87,0.00032602,2]
[310328543,1704473512482,-500.0,0.00032602,2]
[310328544,1704473512491,-1649.63,0.00032602,2]
[310328545,1704473512578,-500.0,0.00032602,2]
[310328546,1704473512588,-500.0,0.00032602,2]
[310328547,1704473512598,-1188.82,0.00032602,2]
[310328548,1704473512610,-500.0,0.00032602,2]
[310328549,1704473512621,-687.41,0.00032602,2]
[310328550,1704473512632,-1161.09,0.00032602,2]
[310328551,1704473512643,-994.25,0.00032602,2]
[310328552,1704473512653,-500.0,0.00032602,2]
[310328553,1704473512664,-3783.36,0.00032602,2]
[310328554,1704473512675,-907.04,0.00032602,2]
[310328555,1704473512686,-500.0,0.00032602,2]
[310328556,1704473512697,-4030.69,0.00032602,2]
[310328557,1704473512707,-500.0,0.00032602,2]
[310328558,1704473512718,-500.0,0.00032602,2]
[310328559,1704473512728,-871.44,0.00032602,2]
[310328560,1704473512739,-2006.85,0.00032602,2]
[310328561,1704473512750,-500.0,0.00032602,2]
[310328562,1704473512760,-500.0,0.00032602,2]
[310328563,1704473512771,-8452.87,0.00032602,2]
[310328564,1704473512781,-1134.28,0.00032602,2]
[310328565,1704473512791,-500.0,0.00032602,2]
[310328566,1704473512803,-500.0,0.00032602,2]
[310328567,1704473512813,-566.66,0.00032602,2]
[310328568,1704473512823,-500.0,0.00032602,2]
[310328569,1704473512834,-1157.92,0.00032602,2]
[310328570,1704473512845,-500.0,0.00032602,2]
[310328571,1704473512855,-512.07,0.00032602,2]
[310328572,1704473512866,-1638.59,0.00032602,2]
[310328573,1704473512876,-1195.76,0.00032602,2]
[310328574,1704473512887,-500.0,0.00032602,2]
[310328575,1704473512901,-7740.43,0.00032602,2]
[310328576,1704473512912,-500.0,0.00032602,2]
[310328577,1704473512922,-1402.48,0.00032602,2]
[310328578,1704473512932,-500.0,0.00032602,2]
[310328579,1704473512943,-500.0,0.00032602,2]
[310328580,1704473512953,-504.28,0.00032602,2]
[310328581,1704473512964,-1600.27,0.00032602,2]
[310328582,1704473512975,-500.0,0.00032602,2]
[310328583,1704473512984,-500.0,0.00032602,2]
[310328584,1704473512995,-2394.98,0.00032602,2]
[310328585,1704473513006,-1206.82,0.00032602,2]
[310328586,1704473513017,-1116.25,0.00032602,2]
[310328587,1704473513028,-500.0,0.00032602,2]
[310328588,1704473513038,-1341.2,0.00032602,2]
[310328589,1704473513048,-1246.52,0.00032602,2]
[310328590,1704473513059,-500.0,0.00032602,2]
[310328591,1704473513069,-500.0,0.00032602,2]
[310328592,1704473513080,-884.54,0.00032602,2]
[310328593,1704473513091,-500.0,0.00032602,2]
[310328594,1704473513102,-3145.82,0.00032602,2]
[310328595,1704473513113,-834.29,0.00032602,2]
[310328596,1704473513123,-1393.24,0.00032602,2]
[310328597,1704473513133,-1151.41,0.00032602,2]
[310328598,1704473513143,-500.0,0.00032602,2]
[310328599,1704473513153,-500.0,0.00032602,2]
[310328600,1704473513163,-542.06,0.00032602,2]
[310328601,1704473513173,-790.38,0.00032602,2]
[310328602,1704473513184,-501.35,0.00032602,2]
[310328603,1704473513194,-1526.32,0.00032602,2]
[310328604,1704473513204,-500.0,0.00032602,2]
[310328605,1704473513214,-757.34,0.00032602,2]
[310328606,1704473513224,-1478.44300615,0.00032697,2]
[310328607,1704473513234,-157.22,0.000327,2]
[310328608,1704473513244,-629.84183893,0.00032776,4]
[310328609,1704473513255,-291.65838665,0.00032776,2]
[310328610,1704473513265,-1633.393474,0.00032797,2]
[310328611,1704473513277,-5639.077506,0.00032797,2]
[310328612,1704473513287,-596.666598,0.00032797,2]
[310328613,1704473513296,-228.390028,0.00032797,2]
[310328614,1704473513306,-297.465689,0.00032797,2]
[310328615,1704473513316,-456.0932,0.00032797,2]
[310328616,1704473513326,-1190.115615,0.00032797,2]
[310328617,1704473513334,-1158.962759,0.00032797,2]
[310328618,1704473513345,-190.4218231,0.00032852,2]
[310328619,1704473513355,-150.0,0.00032852,2]
[310328620,1704473513365,-69244.2690485,0.00032853,2]
[310328621,1704473513376,-2747.0763274,0.00032853,2]
[310328622,1704473513387,-16365.5872271,0.00032853,2]
[310328623,1704473513397,-3802.2199306,0.00032853,2]
[310328624,1704473513408,-79725.5980841,0.00032853,2]
[310328625,1704473513417,-152.32,0.00032854,2]
[310328626,1704473513427,-183.01,0.00032856,2]
[310328627,1704473513436,-500.0,0.00032876,2]
[310328628,1704473513446,-500.0,0.00032876,2]
[310328629,1704473513456,-500.0,0.00032876,2]
[310328630,1704473513466,-500.0,0.00032876,2]
[310328631,1704473513477,-500.0,0.00032876,2]
[310328632,1704473513487,-163.24,0.00032876,2]
[310328633,1704473513498,-500.0,0.00032876,2]
[310328634,1704473513508,-500.0,0.00032876,2]
[310328635,1704473513519,-679.76,0.00032876,2]
[310328636,1704473513529,-500.0,0.00032876,2]
[310328637,1704473513539,-500.0,0.00032876,2]
[310328638,1704473513548,-473.51885645,0.00032876,2]
[310328639,1704473513558,-500.0,0.00032876,2]
[310328640,1704473513568,-500.0,0.00032876,2]
[310328641,1704473513579,-500.0,0.00032876,2]
[310328642,1704473513588,-500.0,0.00032876,2]
[310328643,1704473513597,-500.0,0.00032876,2]
[310328644,1704473513607,-500.0,0.00032876,2]
[310328645,1704473513616,-500.0,0.00032876,2]
[310328646,1704473513626,-500.0,0.00032876,2]
[310328647,1704473513635,-530.29226633,0.00032876,2]
[310328648,1704473513645,-500.0,0.00032876,2]
[310328649,1704473513655,-500.0,0.00032876,2]
[310328650,1704473513664,-500.0,0.00032876,2]
[310328651,1704473513674,-500.0,0.00032876,2]
[310328652,1704473513684,-500.0,0.00032876,2]
[310328653,1704473513695,-500.0,0.00032876,2]
[310328654,1704473513704,-732.22,0.00032876,2]
[310328655,1704473513714,-500.0,0.00032876,2]
[310328656,1704473513725,-500.0,0.00032876,2]
[310328657,1704473513735,-500.0,0.00032876,2]
[310328658,1704473513745,-500.0,0.00032876,2]
[310328659,1704473513757,-500.0,0.00032876,2]
[310328660,1704473513768,-557.95,0.00032876,2]
[310328661,1704473513777,-200.0,0.00032876,4]
[310328662,1704473513788,-200.0,0.00032876,4]
[310328663,1704473513798,-200.0,0.00032876,4]
[310328664,1704473513808,-200.0,0.00032876,4]
[310328665,1704473513818,-200.0,0.00032876,4]
[310328666,1704473513828,-200.0,0.00032876,4]
[310328667,1704473513839,-200.0,0.00032876,4]
[310328668,1704473513849,-200.0,0.00032876,4]
[310328669,1704473513859,-711.61,0.00032876,2]
[310328670,1704473513870,-200.0,0.00032876,4]
[310328671,1704473513879,-200.0,0.00032876,4]
[310328672,1704473513894,-200.0,0.00032876,4]
[310328673,1704473513904,-500.0,0.00032876,2]
[310328674,1704473513914,-777.32,0.00032876,2]
[310328675,1704473513925,-500.0,0.00032876,2]
[310328676,1704473513936,-500.0,0.00032876,2]
[310328677,1704473513946,-500.0,0.00032876,2]
[310328678,1704473513957,-500.0,0.00032876,2]
[310328679,1704473513967,-500.0,0.00032876,2]
[310328680,1704473513977,-500.0,0.00032876,2]
[310328681,1704473513988,-500.0,0.00032876,2]
[310328682,1704473513998,-500.0,0.00032876,2]
[310328683,1704473514010,-500.0,0.00032876,2]
[310328684,1704473514020,-592.48,0.00032876,2]
[310328685,1704473514030,-500.0,0.00032876,2]
[310328686,1704473514041,-500.0,0.00032876,2]
[310328687,1704473514051,-1000.0,0.00032876,2]
[310328688,1704473514061,-996.51,0.00032876,2]
[310328689,1704473514072,-500.0,0.00032876,2]
[310328690,1704473514084,-500.0,0.00032876,2]
[310328691,1704473514096,-500.0,0.00032876,2]
[310328692,1704473514107,-500.0,0.00032876,2]
[310328693,1704473514118,-500.0,0.00032876,2]
[310328694,1704473514128,-500.0,0.00032876,2]
[310328695,1704473514138,-710.5,0.00032876,2]
[310328696,1704473514148,-500.0,0.00032876,2]
[310328697,1704473514158,-500.0,0.00032876,2]
[310328698,1704473514167,-500.0,0.00032876,2]
[310328699,1704473514178,-666.1,0.00032876,2]
[310328700,1704473514188,-537.71,0.00032876,2]
[310328701,1704473514198,-500.0,0.00032876,2]
[310328702,1704473514207,-617.72,0.00032876,2]
[310328703,1704473514217,-500.0,0.00032876,2]
[310328704,1704473514226,-647.0,0.00032876,2]
[310328705,1704473514237,-500.0,0.00032876,2]
[310328706,1704473514247,-500.0,0.00032876,2]
[310328707,1704473514257,-772.2,0.00032876,2]
[310328708,1704473514266,-500.0,0.00032876,2]
[310328709,1704473514276,-500.0,0.00032876,2]
[310328710,1704473514286,-500.0,0.00032876,2]
[310328711,1704473514296,-500.0,0.00032876,2]
[310328712,1704473514306,-537.87,0.00032876,2]
[310328713,1704473514317,-500.0,0.00032876,2]
[310328714,1704473514327,-1038.34,0.00032876,2]
[310328715,1704473514336,-500.0,0.00032876,2]
[310328716,1704473514346,-500.0,0.00032876,2]
[310328717,1704473514356,-500.0,0.00032876,2]
[310328718,1704473514366,-500.0,0.00032876,2]
[310328719,1704473514376,-500.0,0.00032876,2]
[310328720,1704473514386,-500.0,0.00032876,2]
[310328721,1704473514397,-500.0,0.00032876,2]
[310328722,1704473514407,-544.08,0.00032876,2]
[310328723,1704473514416,-500.0,0.00032876,2]
[310328724,1704473514426,-656.98,0.00032876,2]
[310328725,1704473514436,-500.0,0.00032876,2]
[310328726,1704473514446,-500.0,0.00032876,2]
[310328727,1704473514457,-500.0,0.00032876,2]
[310328728,1704473514467,-500.0,0.00032876,2]
[310328729,1704473514477,-669.87,0.00032876,2]
[310328730,1704473514487,-694.38,0.00032876,2]
[310328731,1704473514496,-500.0,0.00032876,2]
[310328732,1704473514506,-742.45,0.00032876,2]
[310328733,1704473514518,-500.0,0.00032876,2]
[310328734,1704473514527,-500.0,0.00032876,2]
[310328735,1704473514537,-500.0,0.00032876,2]
[310328736,1704473514547,-500.0,0.00032876,2]
[310328737,1704473514557,-500.0,0.00032876,2]
[310328738,1704473514568,-544.16,0.00032876,2]
[310328739,1704473514578,-671.99,0.00032876,2]
[310328740,1704473514588,-669.51,0.00032876,2]
[310328741,1704473514599,-500.0,0.00032876,2]
[310328742,1704473514609,-548.59,0.00032876,2]
[310328743,1704473514619,-571.02456999,0.00032876,2]
[310328744,1704473514629,-500.0,0.00032876,2]
[310328745,1704473514639,-1530.36,0.00032876,2]
[310328746,1704473514657,-500.0,0.00032876,2]
[310328747,1704473514683,-583.81,0.00032876,2]
[310328748,1704473514699,-500.0,0.00032876,2]
[310328749,1704473514710,-500.0,0.00032876,2]
[310328750,1704473514720,-500.0,0.00032876,2]
[310328751,1704473514730,-500.0,0.00032876,2]
[310328752,1704473514741,-500.0,0.00032876,2]
[310328753,1704473514751,-500.0,0.00032876,2]
[310328754,1704473514761,-500.0,0.00032876,2]
[310328755,1704473514773,-754.95,0.00032876,2]
[310328756,1704473514783,-500.0,0.00032876,2]
[310328757,1704473514793,-500.0,0.00032876,2]
[310328758,1704473514804,-500.0,0.00032876,2]
[310328759,1704473514815,-500.0,0.00032876,2]
[310328760,1704473514827,-500.0,0.00032876,2]
[310328761,1704473514838,-500.0,0.00032876,2]
[310328762,1704473514848,-500.0,0.00032876,2]
[310328763,1704473514858,-500.0,0.00032876,2]
[310328764,1704473514869,-500.0,0.00032876,2]
[310328765,1704473514880,-1275.01,0.00032876,2]
[310328766,1704473514894,-500.0,0.00032876,2]
[310328767,1704473514904,-500.0,0.00032876,2]
[310328768,1704473514915,-500.0,0.00032876,2]
[310328769,1704473514926,-639.39,0.00032876,2]
[310328770,1704473514937,-500.0,0.00032876,2]
[310328771,1704473514948,-843.96,0.00032876,2]
[310328772,1704473514959,-500.0,0.00032876,2]
[310328773,1704473514969,-207.89,0.00032876,2]
[310328774,1704473514979,-500.0,0.00032876,2]
[310328775,1704473514990,-531.74032409,0.00032876,2]
[310328776,1704473515000,-500.0,0.00032876,2]
[310328777,1704473515011,-500.0,0.00032876,2]
[310328778,1704473515025,-406.06,0.00032876,2]
[310328779,1704473515036,-807.23,0.00032876,2]
[310328780,1704473515048,-500.0,0.00032876,2]
[310328781,1704473515059,-500.0,0.00032876,2]
[310328782,1704473515070,-500.0,0.00032876,2]
[310328783,1704473515081,-500.0,0.00032876,2]
[310328784,1704473515091,-721.09,0.00032876,2]
[310328785,1704473515103,-500.0,0.00032876,2]
[310328786,1704473515113,-500.0,0.00032876,2]
[310328787,1704473515124,-500.0,0.00032876,2]
[310328788,1704473515136,-500.0,0.00032876,2]
[310328789,1704473515146,-500.0,0.00032876,2]
[310328790,1704473515157,-500.0,0.00032876,2]
[310328791,1704473515168,-322.26797679,0.00032876,2]
[310328792,1704473515178,-593.3,0.00032876,2]
[310328793,1704473515188,-500.0,0.00032876,2]
[310328794,1704473515198,-500.0,0.00032876,2]
[310328795,1704473515212,-500.0,0.00032876,2]
[310328796,1704473515222,-500.0,0.00032876,2]
[310328797,1704473515233,-12011.09,0.00032876,2]
[310328798,1704473515244,-500.0,0.00032876,2]
[310328799,1704473515255,-500.0,0.00032876,2]
[310328800,1704473515266,-500.0,0.00032876,2]
[310328801,1704473515280,-1537.14,0.00032876,2]
[310328802,1704473515291,-1588.31,0.00032876,2]
[310328803,1704473515302,-500.0,0.00032876,2]
[310328804,1704473515312,-5973.26,0.00032876,2]
[310328805,1704473515322,-562.91,0.00032876,2]
[310328806,1704473515334,-500.0,0.00032876,2]
[310328807,1704473515344,-1752.6,0.00032876,2]
[310328808,1704473515355,-3119.17,0.00032876,2]
[310328809,1704473515365,-1026.31,0.00032876,2]
[310328810,1704473515375,-1346.93,0.00032876,2]
[310328811,1704473515385,-1520.28,0.00032876,2]
[310328812,1704473515395,-500.0,0.00032876,2]
[310328813,1704473515406,-500.0,0.00032876,2]
[310328814,1704473515416,-631.48986966,0.00032876,2]
[310328815,1704473515426,-500.0,0.00032876,2]
[310328816,1704473515437,-500.0,0.00032876,2]
[310328817,1704473515448,-500.0,0.00032876,2]
[310328818,1704473515459,-226.5458804,0.00032876,2]
[310328819,1704473515469,-500.0,0.00032876,2]
[310328820,1704473515480,-500.0,0.00032876,2]
[310328821,1704473515491,-621.93,0.00032876,2]
[310328822,1704473515502,-871.85,0.00032876,2]
[310328823,1704473515513,-522.5,0.00032876,2]
[310328824,1704473515526,-2085.78,0.00032876,2]
[310328825,1704473515536,-790.33,0.00032876,2]
[310328826,1704473515547,-651.26,0.00032876,2]
[310328827,1704473515558,-500.0,0.00032876,2]
[310328828,1704473515569,-1658.28,0.00032876,2]
[310328829,1704473515579,-2545.82,0.00032876,2]
[310328830,1704473515589,-500.0,0.00032876,2]
[310328831,1704473515601,-2368.93,0.00032876,2]
[310328832,1704473515612,-500.0,0.00032876,2]
[310328833,1704473515622,-500.0,0.00032876,2]
[310328834,1704473515633,-5035.78,0.00032876,2]
[310328835,1704473515644,-1615.12,0.00032876,2]
[310328836,1704473515654,-3964.99,0.00032876,2]
[310328837,1704473515664,-900.42,0.00032876,2]
[310328838,1704473515676,-500.0,0.00032876,2]
[310328839,1704473515687,-527.61,0.00032876,2]
[310328840,1704473515700,-500.0,0.00032876,2]
[310328841,1704473515711,-855.65,0.00032876,2]
[310328842,1704473515722,-3932.79,0.00032876,2]
[310328843,1704473515733,-15880.58,0.00032876,2]
[310328844,1704473515743,-500.0,0.00032876,2]
[310328845,1704473515754,-630.59,0.00032876,2]
[310328846,1704473515765,-2821.0,0.00032876,2]
[310328847,1704473515778,-500.0,0.00032876,2]
[310328848,1704473515789,-1090.66,0.00032876,2]
[310328849,1704473515800,-500.0,0.00032876,2]
[310328850,1704473515812,-500.0,0.00032876,2]
[310328851,1704473515822,-500.0,0.00032876,2]
[310328852,1704473515833,-230.94,0.00032876,2]
[310328853,1704473515843,-1511.19,0.00032876,2]
[310328854,1704473515853,-500.0,0.00032876,2]
[310328855,1704473515865,-668.86,0.00032876,2]
[310328856,1704473515875,-500.0,0.00032876,2]
[310328857,1704473515886,-1950.6,0.00032876,2]
[310328858,1704473515900,-7990.73,0.00032876,2]
[310328859,1704473515910,-500.0,0.00032876,2]
[310328860,1704473515921,-2431.79,0.00032876,2]
[310328861,1704473515931,-500.0,0.00032876,2]
[310328862,1704473515942,-500.0,0.00032876,2]
[310328863,1704473515952,-566.18673723,0.00032876,2]
[310328864,1704473515962,-500.0,0.00032876,2]
[310328865,1704473515973,-1509.04,0.00032876,2]
[310328866,1704473515983,-527.49,0.00032876,2]
[310328867,1704473515994,-752.06,0.00032876,2]
[310328868,1704473516004,-399.36228297,0.00032876,2]
[310328869,1704473516014,-555.27,0.00032876,2]
[310328870,1704473516025,-184.55092689,0.00032876,2]
[310328871,1704473516035,-6614.78,0.00032876,2]
[310328872,1704473516045,-1289.91,0.00032876,2]
[310328873,1704473516055,-1136.89,0.00032876,2]
[310328874,1704473516066,-646.07,0.00032876,2]
[310328875,1704473516076,-500.0,0.00032876,2]
[310328876,1704473516087,-588.45,0.00032876,2]
[310328877,1704473516098,-1154.77,0.00032876,2]
[310328878,1704473516109,-1148.85,0.00032876,2]
[310328879,1704473516120,-500.0,0.00032876,2]
[310328880,1704473516132,-864.89,0.00032876,2]
[310328881,1704473516143,-500.0,0.00032876,2]
[310328882,1704473516153,-746.81,0.00032876,2]
[310328883,1704473516164,-500.0,0.00032876,2]
[310328884,1704473516174,-1747.09,0.00032876,2]
[310328885,1704473516185,-1086.86,0.00032876,2]
[310328886,1704473516196,-585.14,0.00032876,2]
[310328887,1704473516208,-332.27964649,0.00032876,2]
[310328888,1704473516220,-638.99690876,0.00032876,2]
[310328889,1704473516230,-500.0,0.00032876,2]
[310328890,1704473516241,-500.0,0.00032876,2]
[310328891,1704473516253,-500.0,0.00032876,2]
[310328892,1704473516263,-500.0,0.00032876,2]
[310328893,1704473516277,-898.8,0.00032876,2]
[310328894,1704473516287,-581.39,0.00032876,2]
[310328895,1704473516298,-2794.23,0.00032876,2]
[310328896,1704473516308,-680.71,0.00032876,2]
[310328897,1704473516319,-2835.72,0.00032876,2]
[310328898,1704473516330,-500.0,0.00032876,2]
[310328899,1704473516341,-2858.86,0.00032876,2]
[310328900,1704473516352,-533.41,0.00032876,2]
[310328901,1704473516363,-500.0,0.00032876,2]
[310328902,1704473516374,-500.0,0.00032876,2]
[310328903,1704473516384,-500.0,0.00032876,2]
[310328904,1704473516394,-2517.57,0.00032876,2]
[310328905,1704473516405,-1374.42,0.00032876,2]
[310328906,1704473516417,-2511.86,0.00032876,2]
[310328907,1704473516428,-500.0,0.00032876,2]
[310328908,1704473516438,-2755.52,0.00032876,2]
[310328909,1704473516450,-500.0,0.00032876,2]
[310328910,1704473516460,-1222.0,0.00032876,2]
[310328911,1704473516471,-500.0,0.00032876,2]
[310328912,1704473516481,-500.0,0.00032876,2]
[310328913,1704473516493,-4236.93,0.00032876,2]
[310328914,1704473516503,-500.0,0.00032876,2]
[310328915,1704473516513,-814.18,0.00032876,2]
[310328916,1704473516526,-500.0,0.00032876,2]
[310328917,1704473516535,-2392.95,0.00032876,2]
[310328918,1704473516545,-500.0,0.00032876,2]
[310328919,1704473516555,-1842.01,0.00032876,2]
[310328920,1704473516565,-804.31,0.00032876,2]
[310328921,1704473516576,-645.88,0.00032876,2]
[310328922,1704473516587,-500.0,0.00032876,2]
[310328923,1704473516598,-780.05,0.00032876,2]
[310328924,1704473516609,-20128.17,0.00032876,2]
[310328925,1704473516619,-500.0,0.00032876,2]
[310328926,1704473516631,-618.16,0.00032876,2]
[310328927,1704473516642,-500.0,0.00032876,2]
[310328928,1704473516654,-510.82,0.00032876,2]
[310328929,1704473516666,-500.0,0.00032876,2]
[310328930,1704473516677,-1056.97,0.00032876,2]
[310328931,1704473516688,-1483.19,0.00032876,2]
[310328932,1704473516699,-500.0,0.00032876,2]
[310328933,1704473516709,-500.0,0.00032876,2]
[310328934,1704473516719,-500.0,0.00032876,2]
[310328935,1704473516730,-1304.64,0.00032876,2]
[310328936,1704473516741,-500.0,0.00032876,2]
[310328937,1704473516752,-500.0,0.00032876,2]
[310328938,1704473516762,-759.04,0.00032876,2]
[310328939,1704473516775,-1800.48,0.00032876,2]
[310328940,1704473516784,-3227.18,0.00032876,2]
[310328941,1704473516795,-3583.58,0.00032876,2]
[310328942,1704473516806,-768.62,0.00032876,2]
[310328943,1704473516816,-500.0,0.00032876,2]
[310328944,1704473516826,-500.0,0.00032876,2]
[310328945,1704473516836,-2756.04,0.00032876,2]
[310328946,1704473516846,-2834.13,0.00032876,2]
[310328947,1704473516857,-2515.3,0.00032876,2]
[310328948,1704473516868,-500.0,0.00032876,2]
[310328949,1704473516879,-5299.03,0.00032876,2]
[310328950,1704473516894,-537.2,0.00032876,2]
[310328951,1704473516905,-664.57,0.00032876,2]
[310328952,1704473516915,-500.0,0.00032876,2]
[310328953,1704473516926,-1051.18,0.00032876,2]
[310328954,1704473516936,-512.71,0.00032876,2]
[310328955,1704473516946,-500.0,0.00032876,2]
[310328956,1704473516955,-500.0,0.00032876,2]
[310328957,1704473516966,-584.5109843,0.00032876,2]
[310328958,1704473516976,-1696.0,0.00032876,2]
[310328959,1704473516987,-2490.22,0.00032876,2]
[310328960,1704473516998,-500.0,0.00032876,2]
[310328961,1704473517009,-3340.06,0.00032876,2]
[310328962,1704473517019,-1285.5,0.00032876,2]
[310328963,1704473517032,-500.0,0.00032876,2]